bitfinex/quotes_SOLUSD_20250118
["timestamp","ask_amount","ask_price","bid_price","bid_amount"]
[1737195976001,34.02547997,242.54,242.45,32.04387997]
[1737195976288,1.9816,242.54,242.49,32.04387997]
[1737195976465,38.14847997,242.54,242.45,32.04387997]
[1737195976671,32.04387997,242.47,242.39,32.04387997]
[1737195977382,32.04387997,242.49,242.39,32.04387997]
[1737195977586,12.6124,242.53,242.36,20.0]
[1737195977587,8.4892,242.53,242.36,20.0]
[1737195977776,32.04387997,242.5,242.41,32.04387997]
[1737195977982,32.04387997,242.44,242.34,32.10687997]
[1737195978184,23.776884,242.41,242.34,0.063]
[1737195978373,0.77353389,242.42,242.34,0.063]
[1737195978566,1.9816,242.44,242.25,32.04387997]
[1737195978767,1.9816,242.44,242.28,32.04387997]
[1737195978768,32.04387997,242.37,242.28,32.04387997]
[1737195978974,32.04387997,242.43,242.34,32.04387997]
[1737195979495,23.776884,242.42,242.34,32.04387997]
[1737195979701,32.04387997,242.43,242.34,32.04387997]
[1737195979899,1.9816,242.58,242.42,32.04387997]
[1737195980087,32.04387997,242.47,242.38,32.04387997]
[1737195980295,32.04387997,242.45,242.36,32.04387997]
[1737195980899,47.24875799,242.52,242.29,0.30728076]
[1737195980900,32.04387997,242.47,242.38,32.04387997]
[1737195981182,32.04387997,242.49,242.4,32.04387997]
[1737195981992,23.776884,242.48,242.4,32.04387997]
[1737195983509,23.776884,242.46,242.38,32.04387997]
[1737195983694,23.776884,242.39,242.29,0.30746518]
[1737195983877,32.04387997,242.37,242.28,32.04387997]
[1737195984492,32.04387997,242.35,242.27,5.16]
[1737195984872,32.04387997,242.35,242.27,37.20387997]
[1737195985083,32.04387997,242.35,242.27,5.16]
[1737195985301,32.04387997,242.31,242.23,32.04387997]
[1737195985508,8.4892,242.34,242.21,32.04387997]
[1737195985813,23.776884,242.29,242.21,32.04387997]
[1737195985977,32.04387997,242.3,242.21,32.04387997]
[1737195986400,32.04387997,242.34,242.27,32.04387997]
[1737195986772,32.04387997,242.3,242.23,32.04387997]
[1737195986987,32.04387997,242.28,242.19,37.20387997]
[1737195987507,32.04387997,242.28,242.19,32.04387997]
[1737195987990,23.776884,242.27,242.19,32.04387997]
[1737195988695,23.776884,242.2,242.12,32.04387997]
[1737195988899,32.04387997,242.19,242.1,32.04387997]
[1737195989101,32.04387997,242.17,242.1,32.04387997]
[1737195989318,32.04387997,242.13,242.09,0.063]
[1737195989605,32.04387997,242.17,242.09,0.063]
[1737195989993,2.1386,242.18,242.09,0.063]
[1737195989994,2.1386,242.18,242.09,20.37245402]
[1737195990287,32.04387997,242.17,242.09,32.10687997]
[1737195990511,2.1386,242.18,242.11,32.04387997]
[1737195990724,2.1386,242.18,242.16,20.0]
[1737195990890,32.04387997,242.27,242.17,32.04387997]
[1737195991211,34.18247997,242.28,242.19,32.04387997]
[1737195991596,0.77391226,242.39,242.26,20.0]
[1737195991597,32.04387997,242.34,242.26,20.0]
[1737195991804,2.1386,242.38,242.27,32.04387997]
[1737195991805,32.04387997,242.36,242.27,32.04387997]
[1737195991982,32.04387997,242.34,242.25,32.04387997]
[1737195992310,2.1386,242.51,242.26,12.68840944]
[1737195992604,2.1386,242.51,242.45,32.04387997]
[1737195992800,2.1386,242.51,242.46,0.3069894]
[1737195993225,34.18247997,242.51,242.44,5.26]
[1737195993406,2.1386,242.51,242.44,37.30387997]
[1737195993618,34.18247997,242.51,242.44,5.26]
[1737195993915,32.04387997,242.49,242.41,32.04387997]
[1737195994495,32.04387997,242.49,242.4,5.24]
[1737195994701,32.04387997,242.49,242.4,5.54743391]
[1737195994893,34.18247997,242.51,242.41,32.04387997]
[1737195995081,2.1386,242.51,242.48,20.0]
[1737195995390,2.1386,242.51,242.46,0.30694348]
[1737195995696,2.1386,242.51,242.45,32.04387997]
[1737195997195,2.1386,242.51,242.48,20.0]
[1737195997381,9.975,242.6,242.52,20.0]
[1737195997589,9.975,242.6,242.56,32.04387997]
[1737195997787,2.1386,242.6,242.56,32.04387997]
[1737195998098,2.1386,242.6,242.54,32.04387997]
[1737195998700,2.1386,242.6,242.58,32.04387997]
[1737195999405,32.04387997,242.66,242.58,32.04387997]
[1737196001100,0.03,242.67,242.6,52.04387997]
[1737196001404,32.04387997,242.66,242.57,5.18]
[1737196001806,32.04387997,242.66,242.58,32.04387997]
[1737196002402,0.03,242.67,242.58,32.04387997]
[1737196002790,0.03,242.67,242.6,32.04387997]
[1737196003806,0.03,242.67,242.62,32.04387997]
[1737196004305,0.03,242.67,242.52,5.12]
[1737196004306,32.04387997,242.66,242.52,5.12]
[1737196004505,32.04387997,242.64,242.55,32.04387997]
[1737196004697,32.04387997,242.62,242.56,20.0]
[1737196005003,32.04387997,242.64,242.56,20.0]
[1737196005191,32.04387997,242.64,242.57,32.04387997]
[1737196005392,32.04387997,242.64,242.55,32.04387997]
[1737196005593,32.04387997,242.64,242.58,20.0]
[1737196006508,0.03,242.67,242.62,20.0]
[1737196006700,0.03,242.67,242.61,32.04387997]
[1737196007918,0.03,242.67,242.59,32.04387997]
[1737196008205,0.03,242.67,242.61,32.04387997]
[1737196008391,0.03,242.67,242.64,20.0]
[1737196008592,0.03,242.67,242.59,32.04387997]
[1737196008795,0.03,242.67,242.61,32.04387997]
[1737196009396,0.03,242.67,242.62,0.30594602]
[1737196009599,0.03,242.67,242.64,20.0]
[1737196009794,0.03,242.67,242.61,32.04387997]
[1737196011124,0.03,242.67,242.63,32.04387997]
[1737196011815,0.03,242.67,242.61,32.04387997]
[1737196013833,32.04387997,242.63,242.57,32.04387997]
[1737196014001,0.03,242.67,242.57,32.04387997]
[1737196014002,32.04387997,242.65,242.57,32.04387997]
[1737196014202,32.07387997,242.67,242.59,32.04387997]
[1737196015219,32.04387997,242.65,242.57,32.04387997]
[1737196015421,19.56393734,242.65,242.57,19.56393734]
[1737196015615,19.56393734,242.61,242.53,19.56393734]
[1737196016000,19.56393734,242.63,242.56,19.56393734]
[1737196016416,19.56393734,242.63,242.54,19.56393734]
[1737196016820,0.03,242.67,242.54,19.56393734]
[1737196017027,19.56393734,242.65,242.56,19.56393734]
[1737196017504,19.56393734,242.63,242.56,19.56393734]
[1737196017704,23.776884,242.6,242.52,19.56393734]
[1737196018522,19.56393734,242.55,242.49,4.98]
[1737196018736,21.52433734,242.51,242.44,19.56393734]
[1737196018911,19.56393734,242.46,242.36,19.56393734]
[1737196019222,1.9604,242.51,242.4,19.56393734]
[1737196019411,19.56393734,242.44,242.34,5.0]
[1737196019620,19.56393734,242.44,242.36,19.56393734]
[1737196019808,19.56393734,242.46,242.38,19.56393734]
[1737196020006,19.56393734,242.48,242.4,19.56393734]
[1737196020227,1.9604,242.51,242.46,19.56393734]
[1737196020539,19.56393734,242.47,242.36,19.56393734]
[1737196020719,23.776884,242.44,242.36,19.56393734]
[1737196021527,31.84660255,242.44,242.36,31.84660255]
[1737196021725,31.84660255,242.42,242.34,36.84660255]
[1737196022028,31.84660255,242.42,242.34,31.84660255]
[1737196022029,32.094484,242.41,242.34,31.84660255]
[1737196022322,1.9604,242.51,242.4,31.84660255]
[1737196022522,1.9604,242.51,242.45,31.84660255]
[1737196022834,1.9604,242.51,242.49,31.84660255]
[1737196023324,33.80700255,242.6,242.49,31.84660255]
[1737196023538,33.80700255,242.6,242.51,31.84660255]
[1737196023728,31.84660255,242.55,242.47,31.84660255]
[1737196023917,31.84660255,242.59,242.51,31.84660255]
[1737196024122,1.9604,242.6,242.55,31.84660255]
[1737196024527,31.84660255,242.59,242.51,31.84660255]
[1737196025322,1.9604,242.6,242.53,31.84660255]
[1737196025643,1.9604,242.6,242.51,31.84660255]
[1737196026039,1.9604,242.6,242.55,31.84660255]
[1737196026243,1.9604,242.6,242.57,31.84660255]
[1737196026449,1.9604,242.6,242.55,31.84660255]
[1737196026957,1.9604,242.6,242.57,31.84660255]
[1737196027246,0.03,242.64,242.59,31.84660255]
[1737196027625,0.03,242.64,242.59,36.80660255]
[1737196027824,0.03,242.64,242.61,31.84660255]
[1737196028025,0.03,242.64,242.59,36.80660255]
[1737196028627,0.03,242.64,242.61,31.84660255]
[1737196029137,0.03,242.64,242.6,0.30619686]
[1737196029138,0.03,242.64,242.63,31.84660255]
[1737196030454,0.03,242.64,242.59,31.84660255]
[1737196031133,0.03,242.64,242.58,20.0]
[1737196031341,0.03,242.64,242.59,31.84660255]
[1737196032445,0.03,242.64,242.61,31.84660255]
[1737196033149,0.03,242.64,242.59,31.84660255]
[1737196034339,31.84660255,242.63,242.54,31.84660255]
[1737196035650,31.84660255,242.61,242.53,4.9]
[1737196035953,31.84660255,242.61,242.52,31.84660255]
[1737196036445,23.776884,242.6,242.52,31.84660255]
[1737196036638,23.776884,242.6,242.43,0.30683071]
[1737196036639,31.84660255,242.57,242.43,0.30683071]
[1737196036827,31.84660255,242.55,242.46,31.84660255]
[1737196037021,2.1378,242.59,242.48,31.84660255]
[1737196037342,33.98440255,242.59,242.5,31.84660255]
[1737196037729,31.84660255,242.57,242.48,31.84660255]
[1737196037931,23.776884,242.56,242.48,31.84660255]
[1737196038255,25.914684,242.59,242.53,31.84660255]
[1737196038256,2.1378,242.59,242.53,31.84660255]
[1737196038754,2.1378,242.59,242.57,31.84660255]
[1737196039130,2.1378,242.59,242.55,31.84660255]
[1737196039823,2.1378,242.59,242.57,31.84660255]
[1737196040255,0.03,242.64,242.57,31.84660255]
[1737196040555,31.84660255,242.62,242.45,0.30637311]
[1737196040732,31.84660255,242.62,242.52,31.84660255]
[1737196041542,31.84660255,242.6,242.52,31.84660255]
[1737196041746,4.1514,242.64,242.56,31.84660255]
[1737196041747,31.87660255,242.64,242.56,31.84660255]
[1737196042539,0.03,242.64,242.58,31.84660255]
[1737196043355,0.03,242.64,242.61,19.55697398]
[1737196044053,0.03,242.64,242.63,19.55697398]
[1737196044828,0.03,242.64,242.63,14.55697398]
[1737196045047,0.03,242.64,242.63,19.55697398]
[1737196047541,0.03,242.64,242.63,31.93697398]
[1737196048046,0.03,242.64,242.63,51.49394796]
[1737196048841,0.24718,242.74,242.64,17.14912612]
[1737196049056,0.24718,242.74,242.73,19.55697398]
[1737196049235,0.24718,242.74,242.73,24.37697398]
[1737196049861,0.24718,242.74,242.73,4.82]
[1737196050454,0.24718,242.74,242.73,24.37697398]
[1737196050653,0.24718,242.74,242.73,4.82]
[1737196051054,0.24718,242.74,242.73,24.37697398]
[1737196052256,0.2,242.83,242.8,20.0]
[1737196052456,19.55697398,243.13,242.88,32.38]
[1737196052764,19.55697398,243.13,242.97,19.55697398]
[1737196052951,19.55697398,243.13,242.97,24.39697398]
[1737196053141,2.3777,243.14,242.97,24.39697398]
[1737196053142,19.55697398,243.11,242.97,24.39697398]
[1737196053462,0.2,243.14,242.97,210.87373114]
[1737196053639,0.2,243.3,243.15,20.0]
[1737196053845,0.2,243.3,243.27,19.55697398]
[1737196054050,19.55697398,243.28,243.21,19.55697398]
[1737196054252,0.77083128,243.27,243.02,0.30216742]
[1737196054442,28.22217398,243.3,243.2,19.55697398]
[1737196054650,19.55697398,243.25,243.16,19.55697398]
[1737196054845,19.55697398,243.25,243.04,0.30248712]
[1737196054846,19.55697398,243.23,243.14,19.55697398]
[1737196055245,0.97090978,243.3,243.17,20.0]
[1737196055442,0.97090978,243.3,243.12,19.55697398]
[1737196055443,0.2,243.3,243.22,31.59605707]
[1737196055644,31.59605707,243.29,243.18,31.59605707]
[1737196055849,31.59605707,243.29,243.21,5.06]
[1737196056255,31.59605707,243.29,243.2,5.06]
[1737196056455,31.59605707,243.29,243.2,36.65605707]
[1737196056679,0.2,243.3,243.24,31.59605707]
[1737196057162,0.2,243.3,243.29,31.59605707]
[1737196057753,31.79605707,243.3,243.15,5.08]
[1737196058058,0.03,243.23,243.18,31.59605707]
[1737196058259,0.03,243.23,243.22,31.59605707]
[1737196058974,0.2,243.3,243.25,20.0]
[1737196059144,0.2,243.3,243.26,31.59605707]
[1737196059672,0.2,243.3,243.25,20.0]
[1737196059673,0.2,243.3,243.28,31.59605707]
[1737196061359,0.2,243.3,243.29,0.30179216]
[1737196061560,0.2,243.3,243.28,31.59605707]
[1737196061970,0.2,243.3,242.87,149.82764253]
[1737196061971,23.776884,243.28,242.87,149.82764253]
[1737196062172,31.59605707,243.21,243.1,31.59605707]
[1737196062380,31.59605707,243.27,243.16,31.59605707]
[1737196062576,0.2,243.3,243.22,31.59605707]
[1737196062877,0.2,243.3,243.12,0.30217895]
[1737196063053,2.0768,243.29,243.01,0.3024495]
[1737196063252,0.77122669,243.28,243.02,5.14]
[1737196063453,0.77122669,243.28,243.03,5.44297795]
[1737196063762,31.59605707,243.16,243.07,31.59605707]
[1737196063961,31.59605707,243.18,243.09,31.59605707]
[1737196064165,7.44794869,243.28,243.03,5.44297795]
[1737196064166,31.59605707,243.2,243.11,31.59605707]
[1737196064360,10.7069,243.29,243.14,31.59605707]
[1737196064561,31.59605707,243.24,243.14,31.59605707]
[1737196064773,31.59605707,243.21,243.12,31.59605707]
[1737196064973,31.59605707,243.21,243.13,0.30279323]
[1737196065179,31.59605707,243.23,243.14,31.59605707]
[1737196065561,31.59605707,243.21,243.12,31.59605707]
[1737196065968,31.59605707,243.21,243.13,5.12]
[1737196067163,31.59605707,243.19,243.13,5.1]
[1737196067565,31.59605707,243.19,243.1,31.8990202]
[1737196067773,31.59605707,243.22,243.16,20.0]
[1737196067971,31.59605707,243.24,243.18,20.0]
[1737196068680,31.59605707,243.26,243.2,20.0]
[1737196069282,31.59605707,243.26,243.17,31.59605707]
[1737196069582,31.59605707,243.28,243.19,31.59605707]
[1737196069772,31.59605707,243.26,243.2,20.0]
[1737196070366,31.59605707,243.24,243.15,31.59605707]
[1737196071064,31.59605707,243.24,243.18,20.0]
[1737196071463,31.59605707,243.22,243.13,31.65905707]
[1737196071662,31.59605707,243.14,243.13,0.063]
[1737196072477,20.12424816,243.35,243.13,0.063]
[1737196072478,31.59605707,243.19,243.13,0.063]
[1737196072971,31.59605707,243.19,243.11,29.68125707]
[1737196073166,2.0768,243.29,243.15,31.59605707]
[1737196073377,31.59605707,243.24,243.15,31.59605707]
[1737196073880,31.59605707,243.25,243.17,31.59605707]
[1737196074187,31.59605707,243.25,243.18,20.0]
[1737196074761,31.59605707,243.27,243.2,20.0]
[1737196074975,2.0768,243.29,243.13,0.30249806]
[1737196074976,33.67285707,243.29,243.13,0.30249806]
[1737196075179,31.59605707,243.19,243.04,0.30225898]
[1737196075388,31.59605707,243.17,243.04,0.30225898]
[1737196075566,31.59605707,243.21,243.1,31.59605707]
[1737196075880,2.0768,243.29,243.22,20.0]
[1737196076177,0.2,243.3,243.22,25.08]
[1737196076385,0.2,243.3,243.23,31.59605707]
[1737196076567,0.2,243.3,243.26,20.0]
[1737196076889,0.2,243.3,243.28,20.0]
[1737196077388,0.2,243.3,243.25,5.1]
[1737196078182,0.2,243.3,243.29,20.0]
[1737196078608,31.79605707,243.3,243.16,5.08]
[1737196078770,0.2,243.3,243.24,31.59605707]
[1737196079191,0.2,243.3,243.27,20.0]
[1737196079372,0.2,243.3,243.22,31.59605707]
[1737196079567,0.2,243.3,243.22,36.69605707]
[1737196079784,0.2,243.3,243.25,20.0]
[1737196079972,31.59605707,243.27,243.22,5.1]
[1737196080173,31.59605707,243.25,243.22,5.1]
[1737196080377,31.59605707,243.25,243.19,5.08]
[1737196080692,31.59605707,243.27,243.16,31.59605707]
[1737196080867,0.2,243.3,243.17,5.08]
[1737196081072,31.59605707,243.25,243.17,5.08]
[1737196082589,31.59605707,243.23,243.17,5.08]
[1737196082774,31.59605707,243.25,243.17,5.08]
[1737196082978,31.59605707,243.23,243.17,5.08]
[1737196083382,19.46915967,243.24,243.17,5.08]
[1737196083876,0.03,243.25,243.18,19.46915967]
[1737196084079,0.03,243.25,243.17,5.08]
[1737196084482,19.46915967,243.24,243.17,5.08]
[1737196085697,19.46915967,243.24,243.13,0.063]
[1737196085698,19.46915967,243.18,243.13,0.063]
[1737196085999,19.46915967,243.19,243.13,0.063]
[1737196086476,19.46915967,243.16,243.13,0.063]
[1737196086673,2.0577,243.21,243.13,0.063]
[1737196086991,19.46915967,243.14,243.13,0.063]
[1737196087576,19.46915967,243.16,243.13,0.063]
[1737196088073,19.46915967,243.2,243.13,0.063]
[1737196088273,21.52685967,243.21,243.13,0.063]
[1737196088671,19.46915967,243.19,243.13,0.063]
[1737196088885,19.46915967,243.14,243.13,0.063]
[1737196089977,23.776884,243.13,242.99,19.46915967]
[1737196090293,19.46915967,243.09,243.01,19.46915967]
[1737196090491,19.46915967,243.11,243.03,19.46915967]
[1737196090792,20.30911788,243.34,243.03,19.46915967]
[1737196090969,19.46915967,243.12,243.05,19.46915967]
[1737196091381,19.46915967,243.17,243.07,19.46915967]
[1737196091583,19.46915967,243.17,243.09,19.46915967]
[1737196091894,19.46915967,243.17,243.1,4.1135]
[1737196093081,19.46915967,243.17,243.07,19.46915967]
[1737196093388,19.46915967,243.15,243.05,19.46915967]
[1737196093582,23.776884,243.12,243.01,4.115]
[1737196093785,19.46915967,243.07,243.01,4.115]
[1737196093987,19.46915967,243.09,243.01,23.58415967]
[1737196094584,19.46915967,243.09,243.01,33.87175967]
[1737196094779,19.46915967,243.11,243.01,33.87175967]
[1737196094986,19.46915967,243.11,243.01,23.58415967]
[1737196095182,19.46915967,243.13,243.04,19.46915967]
[1737196095696,19.46915967,243.13,243.1,0.063]
[1737196095995,19.46915967,243.17,243.1,0.063]
[1737196096296,19.46915967,243.11,243.1,0.063]
[1737196097696,19.93674003,243.11,243.1,0.063]
[1737196097911,20.0,242.98,242.73,0.063]
[1737196098210,19.46915967,242.78,242.73,0.063]
[1737196098494,19.46915967,242.76,242.73,0.063]
[1737196098704,19.46915967,242.74,242.73,0.063]
[1737196098881,19.46915967,242.74,242.55,4.1228]
[1737196099201,0.46758036,242.73,242.52,21.9543825]
[1737196099802,31.80330118,242.63,242.54,31.80330118]
[1737196100096,31.80330118,242.59,242.52,26.0775825]
[1737196100296,31.80330118,242.57,242.52,21.9543825]
[1737196101103,31.80330118,242.59,242.52,21.9543825]
[1737196101276,31.80330118,242.55,242.52,21.9543825]
[1737196101603,31.80330118,242.53,242.48,0.063]
[1737196101785,31.80330118,242.55,242.48,4.1869]
[1737196102102,31.80330118,242.61,242.52,31.80330118]
[1737196102278,31.80330118,242.62,242.53,31.80330118]
[1737196102580,31.80330118,242.66,242.57,31.80330118]
[1737196102779,31.80330118,242.7,242.64,20.0]
[1737196102979,31.80330118,242.7,242.61,31.80330118]
[1737196103191,31.80330118,242.68,242.59,31.80330118]
[1737196103383,31.80330118,242.6,242.51,31.80330118]
[1737196103792,31.80330118,242.6,242.52,4.1233]
[1737196103987,31.80330118,242.6,242.51,31.80330118]
[1737196104894,31.80330118,242.62,242.53,31.80330118]
[1737196105097,31.80330118,242.6,242.51,31.80330118]
[1737196105297,31.80330118,242.6,242.49,41.14710118]
[1737196105500,31.80330118,242.55,242.48,0.063]
[1737196105918,31.80330118,242.53,242.48,0.063]
[1737196106790,31.80330118,242.57,242.49,4.1238]
[1737196107301,31.80330118,242.55,242.51,0.063]
[1737196107492,31.80330118,242.59,242.51,0.063]
[1737196107695,31.80330118,242.61,242.52,31.80330118]
[1737196107880,31.80330118,242.59,242.51,4.1864]
[1737196108083,31.80330118,242.55,242.51,0.063]
[1737196108284,31.80330118,242.53,242.51,0.063]
[1737196108890,31.80330118,242.55,242.51,0.063]
[1737196109299,31.80330118,242.63,242.54,31.80330118]
[1737196109500,0.46758036,242.62,242.54,31.80330118]
[1737196109692,31.80330118,242.6,242.51,31.86630118]
[1737196110108,31.80330118,242.58,242.51,0.063]
[1737196110486,31.80330118,242.6,242.51,35.98970118]
[1737196110687,0.46758036,242.74,242.51,35.98970118]
[1737196110688,31.80330118,242.66,242.57,31.80330118]
[1737196111003,4.1198,242.73,242.52,31.80330118]
[1737196111004,31.80330118,242.69,242.61,31.80330118]
[1737196111206,31.80330118,242.69,242.59,31.80330118]
[1737196111515,31.80330118,242.67,242.59,31.80330118]
[1737196112208,31.80330118,242.69,242.61,31.80330118]
[1737196112587,31.80330118,242.67,242.58,4.1222]
[1737196112788,31.80330118,242.6,242.53,35.92630118]
[1737196112989,31.80330118,242.6,242.53,4.123]
[1737196113296,31.80330118,242.62,242.53,35.92630118]
[1737196113608,31.80330118,242.6,242.53,35.92630118]
[1737196113806,31.80330118,242.6,242.51,31.86630118]
[1737196113990,31.80330118,242.6,242.51,35.98970118]
[1737196114188,31.80330118,242.6,242.53,31.80330118]
[1737196114390,31.80330118,242.6,242.51,35.98970118]
[1737196115111,31.80330118,242.52,242.17,9.2058]
[1737196115306,31.80330118,242.5,242.34,31.80330118]
[1737196115610,31.80330118,242.42,242.33,4.1265]
[1737196115789,31.80330118,242.42,242.26,10.3823]
[1737196115790,31.80330118,242.36,242.27,35.93090118]
[1737196117408,31.80330118,242.29,242.26,0.063]
[1737196117586,32.27088154,242.28,242.26,0.063]
[1737196117785,64.07418272,242.28,242.13,31.86630118]
[1737196117987,31.80330118,242.23,242.15,31.80330118]
[1737196118188,31.80330118,242.21,242.13,31.86630118]
[1737196118408,31.80330118,242.21,242.13,4.1928]
[1737196118609,31.80330118,242.17,242.13,0.063]
[1737196118988,31.80330118,242.15,242.13,0.063]
[1737196119187,31.80330118,242.15,242.09,0.063]
[1737196119390,11.8431,242.12,241.92,1.62584684]
[1737196119589,31.80330118,241.99,241.91,35.93690118]
[1737196119801,0.46758036,242.11,241.95,31.80330118]
[1737196120009,31.80330118,242.07,241.98,31.80330118]
[1737196120197,31.80330118,242.07,241.99,4.1324]
[1737196120598,31.80330118,242.07,242.0,31.80330118]
[1737196121006,31.80330118,242.11,242.02,31.80330118]
[1737196121216,31.80330118,242.04,241.93,4.1332]
[1737196121513,31.80330118,241.99,241.9,4.1338]
[1737196121716,0.46758036,242.15,241.9,4.1338]
[1737196121916,23.776884,242.15,241.9,4.1338]
[1737196122109,31.80330118,242.16,241.9,4.1338]
[1737196122110,31.80330118,241.98,241.9,4.1338]
[1737196122613,31.80330118,241.96,241.9,4.1338]
[1737196123189,31.80330118,241.98,241.9,4.1338]
[1737196123393,31.80330118,242.01,241.91,31.80330118]
[1737196123801,31.80330118,242.01,241.9,4.1338]
[1737196123802,31.80330118,241.99,241.9,4.1338]
[1737196124023,31.80330118,242.01,241.92,20.0]
[1737196124397,31.80330118,242.01,241.93,4.1334]
[1737196124601,31.80330118,242.01,241.93,35.93670118]
[1737196124806,31.80330118,242.05,241.95,31.80330118]
[1737196125000,31.80330118,242.07,241.97,31.80330118]
[1737196126424,0.46758036,242.06,241.97,31.80330118]
[1737196126609,31.80330118,242.03,241.93,42.13680118]
[1737196126813,31.80330118,241.99,241.92,5.4]
[1737196126991,31.80330118,241.99,241.92,9.5335]
[1737196127197,31.80330118,242.01,241.92,9.5335]
[1737196127398,31.80330118,241.99,241.92,4.1335]
[1737196127807,31.80330118,242.01,241.92,4.1335]
[1737196128004,31.80330118,241.99,241.92,4.1335]
[1737196128507,31.80330118,242.01,241.92,4.1335]
[1737196128711,31.80330118,242.01,241.93,31.80330118]
[1737196129599,31.80330118,242.01,241.92,4.1335]
[1737196129905,31.80330118,241.99,241.92,4.1335]
[1737196130303,31.80330118,242.03,241.94,31.80330118]
[1737196130506,31.80330118,242.03,241.97,20.0]
[1737196130709,31.80330118,242.05,241.98,4.1325]
[1737196130917,0.03,242.06,241.98,4.1325]
[1737196134118,0.03,242.06,241.99,31.80330118]
[1737196134316,0.03,242.06,242.03,31.80330118]
[1737196134620,2.2493,242.25,242.0,5.3]
[1737196134621,31.80330118,242.16,242.05,31.80330118]
[1737196134834,31.80330118,242.2,242.13,20.0]
[1737196135005,31.80330118,242.25,242.16,31.80330118]
[1737196135330,31.80330118,242.23,242.14,31.80330118]
[1737196135501,31.80330118,242.16,242.08,31.80330118]
[1737196135705,31.80330118,242.16,242.06,37.12330118]
[1737196135937,31.80330118,242.16,242.08,31.80330118]
[1737196136104,31.80330118,242.16,242.07,4.131]
[1737196136303,42.12220118,242.28,242.07,4.131]
[1737196136304,31.80330118,242.14,242.07,4.131]
[1737196136503,31.80330118,242.1,242.05,4.1313]
[1737196136733,31.80330118,242.1,242.02,31.80330118]
[1737196136930,31.80330118,242.08,242.03,4.1316]
[1737196137231,31.80330118,242.06,241.99,4.1324]
[1737196137610,31.80330118,242.08,241.99,35.93570118]
[1737196137817,31.80330118,242.02,241.96,4.1327]
[1737196138330,31.80330118,242.02,241.91,0.063]
[1737196138331,31.80330118,241.99,241.91,0.063]
[1737196138642,31.80330118,241.99,241.93,4.1333]
[1737196139339,31.80330118,242.01,241.93,4.1333]
[1737196139723,31.80330118,242.05,241.95,31.80330118]
[1737196140436,31.80330118,242.05,241.96,4.1329]
[1737196140607,31.80330118,242.01,241.92,4.1335]
[1737196140806,31.80330118,242.03,241.93,31.80330118]
[1737196141020,31.80330118,242.03,241.95,31.80330118]
[1737196141223,31.80330118,242.01,241.92,14.4674]
[1737196141413,31.80330118,242.03,241.93,31.80330118]
[1737196141809,31.80330118,242.03,241.95,31.80330118]
[1737196142015,31.80330118,242.05,241.97,31.80330118]
[1737196142217,31.80330118,242.07,241.97,31.80330118]
[1737196142411,31.80330118,242.11,242.01,31.80330118]
[1737196142609,11.3376,242.15,242.01,31.80330118]
[1737196142610,31.80330118,242.13,242.03,31.80330118]
[1737196142812,0.03,242.06,242.03,31.80330118]
[1737196143119,0.03,242.06,242.02,14.4615]
[1737196143722,0.03,242.06,242.03,31.80330118]
[1737196143917,31.80330118,242.15,242.05,31.80330118]
[1737196144120,31.80330118,242.19,242.1,31.80330118]
[1737196144328,31.80330118,242.15,242.06,31.80330118]
[1737196144515,31.80330118,242.17,242.08,31.80330118]
[1737196145216,31.80330118,242.17,242.1,31.80330118]
[1737196145539,31.80330118,242.42,242.2,20.0]
[1737196145745,31.80330118,242.44,242.34,31.80330118]
[1737196145936,4.59108036,242.51,242.29,31.80330118]
[1737196145937,31.80330118,242.38,242.29,31.80330118]
[1737196146234,4.1235,242.51,242.14,5.38]
[1737196146235,0.46758036,242.37,242.14,5.38]
[1737196146442,14.4365,242.44,242.17,20.0]
[1737196146634,1.64348101,242.42,242.17,20.0]
[1737196146836,56.156884,242.38,242.09,5.38]
[1737196147016,0.46758036,242.37,242.09,5.38]
[1737196147216,31.80330118,242.28,242.19,31.80330118]
[1737196147433,0.46758036,242.27,242.19,31.80330118]
[1737196147630,31.80330118,242.36,242.25,31.80330118]
[1737196147825,31.80330118,242.38,242.28,31.80330118]
[1737196148140,31.80330118,242.34,242.25,31.80330118]
[1737196148339,31.80330118,242.36,242.27,31.80330118]
[1737196148653,31.80330118,242.37,242.29,31.80330118]
[1737196148850,32.27088154,242.35,242.27,31.80330118]